[Event "Srdja Dragasevic Memorial-A 2024"]
[Site "Cetinje"]
[Date "2024.06.27"]
[Round "7.15"]
[White "Ivanovic, Bozidar"]
[Black "Hart, Alexander"]
[Result "1/2-1/2"]
[ECO "B48"]
[WhiteElo "2371"]
[BlackElo "1949"]
[Annotator "RC"]
[PlyCount "118"]
[EventDate "2024.06.23"]
[EventType "swiss"]
[EventCountry "MNE"]
[SourceTitle "playchess.com"]
[Source "ChessBase"]
[SourceQuality "1"]
[TimeControl "40/5400+30:1800+30"]

1. e4 {[%emt 0:00:03]} c5 {[%emt 0:00:08]} 2. Nf3 {[%emt 0:00:17]} e6 {[%emt 0:00:12]} 3. d4 {[%emt 0:00:18]} cxd4 {[%emt 0:00:06]} 4. Nxd4 {[%emt 0:00:17]} a6 {[%emt 0:00:10]} 5. Nc3 {[%emt 0:02:04]} b5 {[%emt 0:00:18]} 6. Be3 {[%emt 0:06:11]} Bb7 {[%emt 0:01:15]} 7. Bd3 {[%emt 0:00:38]} Qc7 {[%emt 0:04:33]} 8. O-O {[%emt 0:20:23]} Nc6 {[%emt 0:01:35]} 9. Nxc6 {[%emt 0:08:38]} Bxc6 {[%emt 0:00:11]} 10. Qe2 {[%emt 0:01:22]} Be7 {[%emt 0:03:58]} 11. a3 {[%emt 0:11:35]} Nf6 {[%emt 0:01:13]} 12. f4 {[%emt 0:00:08]} d5 {[%emt 0:06:31]} 13. e5 {[%emt 0:07:40]} Nd7 {[%emt 0:03:17]} 14. Qf2 {[%emt 0:04:47]} g6 {[%emt 0:02:46]} 15. Ne2 {[%emt 0:00:27]} Bb7 {[%emt 0:12:57]} 16. b4 {[%emt 0:02:41]} Rc8 {[%emt 0:01:20]} 17. Nd4 {[%emt 0:00:20]} Qb8 {[%emt 0:02:14]} 18. h4 {[%emt 0:04:58]} Rc4 {[%emt 0:02:01]} 19. h5 {[%emt 0:03:43]} Nf8 {[%emt 0:08:03]} 20. hxg6 {[%emt 0:04:09]} hxg6 {[%emt 0:01:04]} 21. Bxc4 {[%emt 0:04:15]} dxc4 {[%emt 0:02:01]} 22. Nf3 {[%emt 0:00:05]} Nd7 {[%emt 0:02:29]} 23. Rfd1 {[%emt 0:02:20]} Qc7 {[%emt 0:02:07]} 24. c3 {[%emt 0:00:38]} Nb8 {[%emt 0:08:13]} 25. a4 {[%emt 0:03:44]} bxa4 {[%emt 0:01:25]} 26. Rxa4 {[%emt 0:00:09]} Bd5 {[%emt 0:02:17]} 27. Bc5 {[%emt 0:04:50]} Qc6 {[%emt 0:00:25]} 28. Ra5 {[%emt 0:00:30]} Bd8 {[%emt 0:00:19]} 29. Ra2 {[%emt 0:01:50]} Nd7 {[%emt 0:00:04]} 30. Be3 {[%emt 0:00:12]} Qc8 {[%emt 0:01:51]} 31. Bd4 {[%emt 0:00:39]} Bb7 {[%emt 0:00:41]} 32. Rad2 {[%emt 0:01:46]} Be4 {[%emt 0:02:18]} 33. Be3 {[%emt 0:01:38]} Bd5 {[%emt 0:00:41]} 34. Qg3 {[%emt 0:00:48]} Nb6 {[%emt 0:00:42]} 35. Ng5 {[%emt 0:00:25]} Qc6 {[%emt 0:02:02]} 36. Nf3 {[%emt 0:01:13]} Nc8 {[%emt 0:00:35]} 37. f5 {[%emt 0:00:25]} Ne7 {[%emt 0:04:32]} 38. fxg6 {[%emt 0:00:28]} fxg6 {[%emt 0:06:15]} 39. Bc5 {[%emt 0:00:15]} Bb6 {[%emt 0:01:28]} 40. Bxb6 {[%emt 0:00:00]} Qxb6+ {[%emt 0:00:00]} 41. Nd4 {[%emt 0:02:09]} Rh5 {[%emt 0:04:54]} 42. Re1 {[%emt 0:00:29]} Qb8 {[%emt 0:03:36]} 43. Rf2 {[%emt 0:00:33]} Kd7 {[%emt 0:00:34]} 44. Rf7 {[%emt 0:11:49]} Qh8 {[%emt 0:00:18]} 45. Kf2 {[%emt 0:02:05]} Qh6 {[%emt 0:05:11]} 46. Qf4 {[%emt 0:02:18]} Rg5 {[%emt 0:02:57]} 47. Nf3 {[%emt 0:05:19]} Bxf3 {[%emt 0:00:28]} 48. Qxf3 {[%emt 0:00:07]} Ke8 {[%emt 0:11:54]} 49. Rf6 {[%emt 0:04:16]} Rf5 {[%emt 0:02:39]} 50. Rxf5 {[%emt 0:00:10]} gxf5 {[%emt 0:00:54]} 51. Rd1 {[%emt 0:03:53]} Nd5 {[%emt 0:00:25]} 52. Rxd5 {[%emt 0:01:02]} exd5 {[%emt 0:00:01]} 53. Qxd5 {[%emt 0:00:01]} Qf4+ {[%emt 0:02:52]} 54. Ke2 {[%emt 0:00:25]} Qg3 {[%emt 0:06:02]} 55. Qf3 {[%emt 0:01:52]} Qh2 {[%emt 0:01:47]} 56. Ke3 {[%emt 0:00:49]} Qxe5+ {[%emt 0:00:28]} 57. Kf2 {[%emt 0:00:11]} Qb5 {[%emt 0:03:38]} 58. Kg3 {[%emt 0:02:50]} Qe5+ {[%emt 0:01:04]} 59. Kf2 {[%emt 0:00:47]} Qb5 {[%emt 0:00:06]} 1/2-1/2

[Event "Srdja Dragasevic Memorial-A 2024"]
[Site "Cetinje"]
[Date "2024.06.27"]
[Round "7.16"]
[White "Tomic, Aleksandar"]
[Black "Skvortsova, Alena"]
[Result "1-0"]
[ECO "D10"]
[WhiteElo "2388"]
[BlackElo "2170"]
[Annotator "RC"]
[PlyCount "108"]
[EventDate "2024.06.23"]
[EventType "swiss"]
[EventCountry "MNE"]
[SourceTitle "playchess.com"]
[Source "ChessBase"]
[SourceQuality "1"]
[TimeControl "40/5400+30:1800+30"]

1. d4 {[%emt 0:05:23]} d5 {[%emt 0:01:57]} 2. c4 {[%emt 0:00:06]} c6 {[%emt 0:00:03]} 3. cxd5 {[%emt 0:00:06]} cxd5 {[%emt 0:00:06]} 4. Bf4 {[%emt 0:00:04]} Nf6 {[%emt 0:00:15]} 5. Nc3 {[%emt 0:00:05]} Nc6 {[%emt 0:00:14]} 6. e3 {[%emt 0:00:17]} Bg4 {[%emt 0:02:54]} 7. Qb3 {[%emt 0:01:29]} Na5 {[%emt 0:00:32]} 8. Qa4+ {[%emt 0:01:00]} Bd7 {[%emt 0:00:21]} 9. Qc2 {[%emt 0:00:07]} Rc8 {[%emt 0:05:08]} 10. Bd3 {[%emt 0:00:47]} e6 {[%emt 0:00:12]} 11. Nf3 {[%emt 0:00:42]} Bb4 {[%emt 0:00:35]} 12. O-O {[%emt 0:00:23]} O-O {[%emt 0:02:00]} 13. Rac1 {[%emt 0:00:55]} Bxc3 {[%emt 0:03:16]} 14. bxc3 {[%emt 0:00:17]} Nc4 {[%emt 0:03:39]} 15. Bxc4 {[%emt 0:03:40]} Rxc4 {[%emt 0:06:41]} 16. Ne5 {[%emt 0:00:02]} Rc8 {[%emt 0:00:35]} 17. Bg5 {[%emt 0:00:05]} Qc7 {[%emt 0:15:01]} 18. Bxf6 {[%emt 0:01:21]} gxf6 {[%emt 0:00:05]} 19. Ng4 {[%emt 0:00:07]} Kg7 {[%emt 0:04:10]} 20. f4 {[%emt 0:01:29]} f5 {[%emt 0:03:29]} 21. Nf2 {[%emt 0:02:13]} Bb5 {[%emt 0:00:40]} 22. Rfe1 {[%emt 0:00:17]} Rg8 {[%emt 0:06:16]} 23. Kh1 {[%emt 0:01:47]} Kh8 {[%emt 0:01:59]} 24. Rg1 {[%emt 0:02:05]} Qe7 {[%emt 0:01:33]} 25. g4 {[%emt 0:04:33]} fxg4 {[%emt 0:00:45]} 26. Nxg4 {[%emt 0:00:27]} f5 {[%emt 0:17:42]} 27. Ne5 {[%emt 0:02:18]} Rxg1+ {[%emt 0:00:07]} 28. Rxg1 {[%emt 0:00:34]} Rg8 {[%emt 0:00:17]} 29. Rg5 {[%emt 0:05:29]} Rxg5 {[%emt 0:04:13]} 30. fxg5 {[%emt 0:00:07]} Kg7 {[%emt 0:00:33]} 31. h4 {[%emt 0:00:36]} Qe8 {[%emt 0:04:22]} 32. Qd1 {[%emt 0:02:38]} Ba4 {[%emt 0:00:12]} 33. Qe2 {[%emt 0:01:38]} Bb5 {[%emt 0:07:14]} 34. Qb2 {[%emt 0:00:21]} Qh5 {[%emt 0:06:41]} 35. Qxb5 {[%emt 0:00:30]} Qxh4+ {[%emt 0:00:59]} 36. Kg2 {[%emt 0:00:12]} Qxg5+ {[%emt 0:00:51]} 37. Kf2 {[%emt 0:02:29]} Qh4+ {[%emt 0:00:17]} 38. Ke2 {[%emt 0:00:12]} Qh2+ {[%emt 0:02:07]} 39. Kd3 {[%emt 0:00:14]} Qxa2 {[%emt 0:00:56]} 40. Qd7+ {[%emt 0:00:00]} Kh6 {[%emt 0:00:00]} 41. Qxe6+ {[%emt 0:02:43]} Kg5 {[%emt 0:01:35]} 42. Qe7+ {[%emt 0:00:15]} Kh5 {[%emt 0:02:59]} 43. Qxh7+ {[%emt 0:02:07]} Kg5 {[%emt 0:00:05]} 44. Qg6+ {[%emt 0:14:30]} Kh4 {[%emt 0:00:17]} 45. Nf3+ {[%emt 0:00:17]} Kh3 {[%emt 0:00:06]} 46. Qxf5+ {[%emt 0:00:43]} Kg2 {[%emt 0:04:40]} 47. Ne1+ {[%emt 0:00:25]} Kh2 {[%emt 0:02:10]} 48. Qh5+ {[%emt 0:09:34]} Kg3 {[%emt 0:00:42]} 49. Qg5+ {[%emt 0:00:39]} Kh3 {[%emt 0:00:15]} 50. Qg2+ {[%emt 0:00:12]} Qxg2 {[%emt 0:00:09]} 51. Nxg2 {[%emt 0:00:04]} Kxg2 {[%emt 0:00:06]} 52. e4 {[%emt 0:00:04]} dxe4+ {[%emt 0:00:42]} 53. Kxe4 {[%emt 0:00:01]} a5 {[%emt 0:00:22]} 54. d5 {[%emt 0:00:22]} a4 {[%emt 0:00:14]} 1-0

[Event "Srdja Dragasevic Memorial-A 2024"]
[Site "Cetinje"]
[Date "2024.06.27"]
[Round "7.17"]
[White "Pogorelskikh, Sofia"]
[Black "Arora Honi"]
[Result "1-0"]
[ECO "B92"]
[WhiteElo "2216"]
[BlackElo "2082"]
[Annotator "RC"]
[PlyCount "83"]
[EventDate "2024.06.23"]
[EventType "swiss"]
[EventCountry "MNE"]
[SourceTitle "playchess.com"]
[Source "ChessBase"]
[SourceQuality "1"]
[TimeControl "40/5400+30:1800+30"]

1. e4 {[%emt 0:00:22]} c5 {[%emt 0:00:20]} 2. Nf3 {[%emt 0:00:11]} d6 {[%emt 0:00:07]} 3. d4 {[%emt 0:00:10]} cxd4 {[%emt 0:00:05]} 4. Nxd4 {[%emt 0:00:09]} Nf6 {[%emt 0:00:06]} 5. Nc3 {[%emt 0:00:10]} a6 {[%emt 0:00:04]} 6. Be2 {[%emt 0:00:14]} e5 {[%emt 0:00:07]} 7. Nb3 {[%emt 0:00:30]} Be7 {[%emt 0:00:06]} 8. Be3 {[%emt 0:00:39]} Be6 {[%emt 0:00:08]} 9. Nd5 {[%emt 0:00:30]} Nbd7 {[%emt 0:00:14]} 10. Qd3 {[%emt 0:00:46]} O-O {[%emt 0:03:14]} 11. O-O {[%emt 0:01:19]} Bxd5 {[%emt 0:01:19]} 12. exd5 {[%emt 0:00:10]} Ne8 {[%emt 0:00:49]} 13. a4 {[%emt 0:03:14]} Bg5 {[%emt 0:15:13]} 14. a5 {[%emt 0:02:09]} Bxe3 {[%emt 0:05:33]} 15. Qxe3 {[%emt 0:07:54]} Rc8 {[%emt 0:01:51]} 16. c4 {[%emt 0:03:34]} g6 {[%emt 0:07:25]} 17. Nd2 {[%emt 0:13:51]} Ng7 {[%emt 0:03:43]} 18. b4 {[%emt 0:05:30]} Nf5 {[%emt 0:03:23]} 19. Qd3 {[%emt 0:02:32]} Nd4 {[%emt 0:03:22]} 20. Bd1 {[%emt 0:02:14]} g5 {[%emt 0:13:00]} 21. Ne4 {[%emt 0:15:26]} Qe7 {[%emt 0:01:30]} 22. Ba4 {[%emt 0:01:23]} f5 {[%emt 0:11:47]} 23. Nxg5 {[%emt 0:04:24]} b5 {[%emt 0:04:00]} 24. axb6 {[%emt 0:09:32]} Nxb6 {[%emt 0:00:59]} 25. Ne6 {[%emt 0:00:50]} Nxe6 {[%emt 0:10:11]} 26. dxe6 {[%emt 0:00:09]} Rxc4 {[%emt 0:00:16]} 27. Bb3 {[%emt 0:02:17]} Rxb4 {[%emt 0:00:17]} 28. Rxa6 {[%emt 0:02:13]} Rd4 {[%emt 0:03:36]} 29. Qb5 {[%emt 0:04:20]} Nc8 {[%emt 0:01:17]} 30. Rc1 {[%emt 0:02:39]} Rg4 {[%emt 0:03:31]} 31. h3 {[%emt 0:06:50]} Rxg2+ {[%emt 0:07:09]} 32. Kxg2 {[%emt 0:00:48]} Qg5+ {[%emt 0:00:10]} 33. Kf3 {[%emt 0:00:51]} Qf4+ {[%emt 0:00:48]} 34. Ke2 {[%emt 0:00:21]} Qe4+ {[%emt 0:00:12]} 35. Kd1 {[%emt 0:03:54]} Ne7 {[%emt 0:00:42]} 36. Ra4 {[%emt 0:03:56]} Qf3+ {[%emt 0:00:17]} 37. Ke1 {[%emt 0:00:21]} e4 {[%emt 0:00:46]} 38. Bd1 {[%emt 0:00:50]} Qxh3 {[%emt 0:00:58]} 39. Qf1 {[%emt 0:00:24]} Qh6 {[%emt 0:00:14]} 40. Rc7 {[%emt 0:00:00]} Qxe6 {[%emt 0:00:00]} 41. Raa7 {[%emt 0:06:20]} Qe5 {[%emt 0:05:32]} 42. Qc4+ {[%emt 0:01:05]} 1-0

[Event "Srdja Dragasevic Memorial-A 2024"]
[Site "Cetinje"]
[Date "2024.06.27"]
[Round "7.18"]
[White "Miletic, Vuk"]
[Black "Pusara, Mihailo"]
[Result "1/2-1/2"]
[ECO "D55"]
[WhiteElo "2193"]
[BlackElo "2117"]
[Annotator "RC"]
[PlyCount "176"]
[EventDate "2024.06.23"]
[EventType "swiss"]
[EventCountry "MNE"]
[SourceTitle "playchess.com"]
[Source "ChessBase"]
[SourceQuality "1"]
[TimeControl "40/5400+30:1800+30"]

1. d4 {[%emt 0:01:57]} d5 {[%emt 0:00:52]} 2. c4 {[%emt 0:00:17]} e6 {[%emt 0:00:04]} 3. Nf3 {[%emt 0:01:20]} Nf6 {[%emt 0:00:07]} 4. Nc3 {[%emt 0:00:14]} Be7 {[%emt 0:00:04]} 5. Bg5 {[%emt 0:00:05]} O-O {[%emt 0:00:11]} 6. e3 {[%emt 0:00:14]} h6 {[%emt 0:00:07]} 7. Bxf6 {[%emt 0:00:25]} Bxf6 {[%emt 0:00:05]} 8. Qd2 {[%emt 0:00:05]} a6 {[%emt 0:02:48]} 9. Rd1 {[%emt 0:00:52]} Re8 {[%emt 0:01:48]} 10. a3 {[%emt 0:24:29]} dxc4 {[%emt 0:10:03]} 11. Bxc4 {[%emt 0:00:06]} b5 {[%emt 0:00:06]} 12. Bd3 {[%emt 0:00:22]} Bb7 {[%emt 0:00:18]} 13. Be4 {[%emt 0:00:31]} Qc8 {[%emt 0:04:06]} 14. O-O {[%emt 0:16:12]} Nd7 {[%emt 0:01:14]} 15. Qc2 {[%emt 0:00:32]} c5 {[%emt 0:04:26]} 16. Bxb7 {[%emt 0:01:12]} Qxb7 {[%emt 0:00:03]} 17. Ne4 {[%emt 0:00:14]} Be7 {[%emt 0:27:56]} 18. dxc5 {[%emt 0:02:36]} Rec8 {[%emt 0:00:32]} 19. b4 {[%emt 0:00:32]} Nb6 {[%emt 0:00:32]} 20. Nfd2 {[%emt 0:11:26]} a5 {[%emt 0:01:25]} 21. Nc3 {[%emt 0:01:30]} axb4 {[%emt 0:04:31]} 22. axb4 {[%emt 0:00:12]} Nd5 {[%emt 0:00:54]} 23. Nxd5 {[%emt 0:00:59]} Qxd5 {[%emt 0:00:04]} 24. Ne4 {[%emt 0:04:24]} Qc6 {[%emt 0:00:58]} 25. Nc3 {[%emt 0:06:11]} Ra3 {[%emt 0:02:47]} 26. Ne2 {[%emt 0:09:09]} Bf6 {[%emt 0:03:20]} 27. Nd4 {[%emt 0:00:36]} Qa6 {[%emt 0:00:25]} 28. Qe2 {[%emt 0:06:20]} Rb8 {[%emt 0:01:28]} 29. h3 {[%emt 0:02:51]} Qa4 {[%emt 0:02:38]} 30. Nc6 {[%emt 0:01:11]} Rc8 {[%emt 0:00:30]} 31. Qf3 {[%emt 0:02:21]} Rb3 {[%emt 0:03:53]} 32. Rd7 {[%emt 0:04:18]} Qa8 {[%emt 0:00:28]} 33. Rd6 {[%emt 0:00:23]} Ra3 {[%emt 0:02:53]} 34. Rfd1 {[%emt 0:01:15]} Ra6 {[%emt 0:00:10]} 35. Nd4 {[%emt 0:01:30]} Qxf3 {[%emt 0:00:31]} 36. gxf3 {[%emt 0:00:37]} Rxd6 {[%emt 0:02:22]} 37. cxd6 {[%emt 0:00:01]} Bxd4 {[%emt 0:00:10]} 38. Rxd4 {[%emt 0:00:02]} Kf8 {[%emt 0:00:25]} 39. d7 {[%emt 0:01:51]} Rd8 {[%emt 0:00:21]} 40. Rd6 {[%emt 0:00:00]} Ke7 {[%emt 0:00:00]} 41. Rb6 {[%emt 0:00:09]} Rxd7 {[%emt 0:00:25]} 42. Rxb5 {[%emt 0:00:03]} Rd1+ {[%emt 0:06:46]} 43. Kg2 {[%emt 0:00:05]} Rb1 {[%emt 0:00:04]} 44. Rb7+ {[%emt 0:00:16]} Kf6 {[%emt 0:00:06]} 45. f4 {[%emt 0:00:20]} g5 {[%emt 0:01:09]} 46. Kf3 {[%emt 0:05:47]} Rb2 {[%emt 0:01:52]} 47. fxg5+ {[%emt 0:02:56]} hxg5 {[%emt 0:00:04]} 48. Kg3 {[%emt 0:03:34]} Kg6 {[%emt 0:04:02]} 49. b5 {[%emt 0:07:38]} f6 {[%emt 0:11:33]} 50. b6 {[%emt 0:02:16]} Kf5 {[%emt 0:08:01]} 51. Kf3 {[%emt 0:04:32]} Ke5 {[%emt 0:04:07]} 52. Rb8 {[%emt 0:00:04]} Kf5 {[%emt 0:01:34]} 53. b7 {[%emt 0:05:52]} Rb4 {[%emt 0:02:48]} 54. Ke2 {[%emt 0:03:28]} Rb2+ {[%emt 0:02:32]} 55. Kd3 {[%emt 0:00:09]} Rb3+ {[%emt 0:00:11]} 56. Kc4 {[%emt 0:00:42]} Rb1 {[%emt 0:00:13]} 57. f3 {[%emt 0:00:45]} Ke5 {[%emt 0:00:48]} 58. Kc3 {[%emt 0:00:45]} Rb6 {[%emt 0:00:58]} 59. Kd3 {[%emt 0:00:31]} Rb3+ {[%emt 0:00:14]} 60. Kc4 {[%emt 0:00:39]} Rb1 {[%emt 0:00:17]} 61. Kc5 {[%emt 0:00:23]} Rc1+ {[%emt 0:03:15]} 62. Kb5 {[%emt 0:00:04]} Rb1+ {[%emt 0:00:07]} 63. Kc5 {[%emt 0:00:36]} Kf5 {[%emt 0:01:27]} 64. Kd6 {[%emt 0:00:24]} Rd1+ {[%emt 0:00:06]} 65. Ke7 {[%emt 0:00:25]} Rb1 {[%emt 0:00:04]} 66. Kf7 {[%emt 0:00:12]} Rb3 {[%emt 0:02:36]} 67. Kg7 {[%emt 0:00:42]} Rb4 {[%emt 0:00:51]} 68. Rf8 {[%emt 0:01:15]} Rxb7+ {[%emt 0:00:14]} 69. Rf7 {[%emt 0:00:01]} Rb3 {[%emt 0:02:28]} 70. Rxf6+ {[%emt 0:00:45]} Ke5 {[%emt 0:00:09]} 71. Kf7 {[%emt 0:00:42]} Rb7+ {[%emt 0:01:03]} 72. Kg6 {[%emt 0:00:09]} Rb1 {[%emt 0:00:42]} 73. f4+ {[%emt 0:00:19]} gxf4 {[%emt 0:00:05]} 74. exf4+ {[%emt 0:00:04]} Ke4 {[%emt 0:00:19]} 75. h4 {[%emt 0:01:07]} Rg1+ {[%emt 0:01:42]} 76. Kh6 {[%emt 0:00:11]} Rg4 {[%emt 0:00:33]} 77. h5 {[%emt 0:00:31]} e5 {[%emt 0:02:11]} 78. f5 {[%emt 0:00:58]} Kf4 {[%emt 0:00:19]} 79. Rf8 {[%emt 0:00:26]} e4 {[%emt 0:00:34]} 80. f6 {[%emt 0:00:04]} Rg5 {[%emt 0:01:28]} 81. Re8 {[%emt 0:01:08]} Rf5 {[%emt 0:00:40]} 82. Kg6 {[%emt 0:00:25]} Rg5+ {[%emt 0:00:19]} 83. Kh6 {[%emt 0:00:17]} Rf5 {[%emt 0:00:21]} 84. Kg7 {[%emt 0:00:49]} Rxh5 {[%emt 0:00:15]} 85. f7 {[%emt 0:00:35]} Rf5 {[%emt 0:00:50]} 86. Re6 {[%emt 0:00:27]} e3 {[%emt 0:00:58]} 87. Rf6 {[%emt 0:00:27]} Rxf6 {[%emt 0:00:10]} 88. Kxf6 {[%emt 0:00:06]} e2 {[%emt 0:00:03]} 1/2-1/2